[Event "2nd Serbia Open Masters 2022"]
[Site "Novi Sad"]
[Date "2022.06.30"]
[Round "3.40"]
[White "Samadov, Read"]
[Black "Pasztor, Balazs"]
[Result "1-0"]
[ECO "E07"]
[WhiteElo "2442"]
[BlackElo "2336"]
[Annotator "TA"]
[PlyCount "73"]
[EventDate "2022.06.28"]
[EventType "swiss"]
[EventCountry "SRB"]
[SourceTitle "playchess.com"]
[Source "ChessBase"]
[SourceQuality "1"]
[TimeControl "40/5400+30:900+30"]

{[%evp 18,73,0,0,14,24,25,26,67,83,75,78,65,71,77,64,70,67,73,-45,-50,-75,-61,-169,-131,-134,16,13,21,2,30,0,54,25,47,34,31,25,43,4,6,11,21,0,13,18,399,387,375,399,595,566,2197,1860,29982,29983,29998,29999]} 1. d4 {[%emt 0:00:03]} d5 {[%emt 0:00:31]} 2. c4 {[%emt 0:00:19]} e6 {[%emt 0:00:10]} 3. Nf3 {[%emt 0:00:21]} Nf6 {[%emt 0:00:09]} 4. g3 {[%emt 0:00:06]} Bb4+ {[%emt 0:00:13]} 5. Bd2 {[%emt 0:00:23]} Be7 {[%emt 0:00:07]} 6. Bg2 {[%emt 0:00:25]} O-O {[%emt 0:00:13]} 7. O-O {[%emt 0:00:23]} c6 {[%emt 0:00:08]} 8. Bf4 {[%emt 0:02:26]} Nbd7 {[%emt 0:01:34]} 9. Nc3 {[%emt 0:06:28] 9.Qc2 is not played anymore.} dxc4 {[%emt 0:03:25] 9...Nh5 is not played anymore.} 10. e4 {[%emt 0:01:58]} b5 {[%emt 0:10:37] E07: Closed Catalan: Main Line (5 Nf3 0-0 6 0-0 Nbd7).} 11. d5 $1 {[%emt 0:02:14]} cxd5 {[%emt 0:25:31]} 12. exd5 {[%emt 0:01:41]} b4 {[%emt 0:16:05] White has an edge.} 13. d6 {[%emt 0:09:16]} bxc3 {[%emt 0:00:39]} 14. dxe7 {[%emt 0:00:33]} Qxe7 {[%emt 0:00:07]} 15. Bd6 {[%emt 0:00:11] A strong pair of Bishops.} Qd8 {[%emt 0:01:51]} 16. bxc3 {[%emt 0:27:45]} ({Don't play} 16. Bxf8 cxb2 17. Rb1 Qxf8 $15) 16... Re8 {[%emt 0:03:32] [#]} 17. Ng5 $146 {[%emt 0:04:51]} ({Predecessor:} 17. Nd4 Nd5 18. Nxe6 Rxe6 19. Bxd5 Rxd6 20. Bxf7+ Kxf7 21. Qxd6 Qg5 22. Qc6 Nb6 23. Rab1 {1-0 (46) Tomashevsky,E (2745)-Akobian,V (2622) Tsaghkadzor 2015}) 17... Ba6 {[%emt 0:08:04] [#]} 18. Bxa8 {[%emt 0:05:30] 0x0.001e6b661ebadp-1022s more active pieces.} ({White should play} 18. Qa4 $1 $16 {[%cal Ra4a6]} Qb6 19. Bc6 (19. Bxa8 Rxa8 20. Ba3 Bb5 $11)) 18... Qxa8 $15 {[%emt 0:00:14]} 19. f3 {[%emt 0:06:47][%cal Og5e4,Bf2f3,Bf3f4,Bf4f5][%mdl 32]} Qc6 {[%emt 0:04:47][%mdl 1024] Black has strong compensation.} 20. Rf2 {[%emt 0:02:36]} (20. Bf4 $15) 20... Nd5 {[%emt 0:02:35]} 21. Ba3 {[%emt 0:03:46]} Ne5 {[%emt 0:04:38]} (21... h6 $17 22. Ne4 Ne5) 22. f4 $11 {[%emt 0:02:45]} Ng6 {[%emt 0:05:44]} 23. Qd4 {[%emt 0:03:26]} Bb7 {[%emt 0:01:59][%cal Od5f4] And now ...Ndxf4! would win.} 24. Nf3 $40 {[%emt 0:01:11][%mdl 128] Black needs to defend precisely.} Nb6 {[%emt 0:03:40]} (24... Ba8 $11) 25. Re1 {[%emt 0:01:13]} Ne7 {[%emt 0:01:28]} 26. Bxe7 {[%emt 0:03:01]} Rxe7 {[%emt 0:00:09]} 27. f5 {[%emt 0:01:27]} Nd7 {[%emt 0:01:47] Inhibits f6.} 28. h3 {[%emt 0:03:59]} e5 {[%emt 0:01:09]} 29. Qxa7 {[%emt 0:03:44]} Nc5 {[%emt 0:00:24]} 30. Rb1 {[%emt 0:01:35][%cal Be1b1,Bb1b5,Bb5b7][%mdl 32]} (30. Rd2 $5 Nd3 31. Kh2 $11) 30... f6 {[%emt 0:00:59]} 31. Qb6 {[%emt 0:01:19] Threatens to win with Qxc6.} Qd5 {[%emt 0:00:47][%mdl 8192] [#]} (31... Ne4 $11 32. Qxc6 Bxc6) 32. Rb5 $1 $18 {[%emt 0:00:47]} Na4 {[%emt 0:02:35]} (32... Qd1+ $2 33. Rf1 Qd3 34. Qxc5) 33. Qa5 {[%emt 0:00:56]} ({Less strong is} 33. Rxd5 Nxb6 34. Rd8+ Kf7 $18) 33... Qd1+ {[%emt 0:01:09]} (33... Nc5 $142 34. Rxc5 Qd1+ 35. Rf1 Qd3) 34. Rf1 {[%emt 0:00:12]} Qd3 {[%emt 0:00:00] White must now prevent ...Qe3+.} 35. Rxb7 {[%emt 0:00:31]} Qe3+ {[%emt 0:00:12]} 36. Kh1 {[%emt 0:00:11]} Qe2 {[%emt 0:00:43]} 37. Qd8+ {[%emt 0:00:05] Never resign too early!  Weighted Error Value: White=0.15 (very precise) /Black=0.81} 1-0

[Event "2nd Serbia Open Masters 2022"]
[Site "Novi Sad"]
[Date "2022.06.30"]
[Round "3.41"]
[White "Gan-Erdene, Sugar"]
[Black "Ram Aravind L N"]
[Result "0-1"]
[ECO "B43"]
[WhiteElo "2419"]
[BlackElo "2116"]
[Annotator "TA"]
[PlyCount "106"]
[EventDate "2022.06.28"]
[EventType "swiss"]
[EventCountry "SRB"]
[SourceTitle "playchess.com"]
[Source "ChessBase"]
[SourceQuality "1"]
[TimeControl "40/5400+30:900+30"]

{[%evp 20,106,19,15,7,8,30,0,21,0,0,0,13,-6,13,16,49,27,31,0,0,0,0,0,0,15,42,0,264,-18,-11,-16,-21,-56,-55,-62,-62,-89,-66,-137,-54,-152,-142,-172,-149,-139,-147,-157,-66,-65,-79,-71,-75,-69,-74,-80,-61,-109,-124,-154,-142,-148,-96,-134,-124,-113,-127,-132,-116,-107,-115,-157,-150,-150,-148,-141,-147,-173,-173,-199,-194,-239,-247,-520,-526,-672,-678,-589,-587]} 1. e4 {[%emt 0:00:04]} c5 {[%emt 0:01:53]} 2. Nf3 {[%emt 0:00:08]} e6 {[%emt 0:00:06]} 3. d4 {[%emt 0:00:07]} cxd4 {[%emt 0:00:04]} 4. Nxd4 {[%emt 0:00:07]} a6 {[%emt 0:00:06]} 5. Bd3 {[%emt 0:00:27]} Qc7 {[%emt 0:00:24]} 6. O-O {[%emt 0:00:51]} Bc5 {[%emt 0:00:06]} 7. Nb3 {[%emt 0:03:28]} Be7 {[%emt 0:00:01]} 8. Qe2 {[%emt 0:04:52]} d6 {[%emt 0:00:28]} 9. Nc3 {[%emt 0:01:23][%cal Bb1c3,Bc3d1,Bd1f2][%mdl 32]} Nf6 {[%emt 0:00:13]} 10. f4 {[%emt 0:00:45]} Nbd7 {[%emt 0:06:45]} 11. Bd2 {[%emt 0:06:47]} b5 {[%emt 0:02:03] B43: Sicilian: Kan Variation: 5 Nc3.} 12. Rae1 {[%emt 0:13:57]} Bb7 {[%emt 0:08:13]} (12... b4 $5 {[%cal Rb4c3]} 13. Nd1 Bb7 $11) 13. Kh1 {[%emt 0:16:08]} (13. e5 {with more complications.} Nd5 14. exd6 Bxd6 15. f5) 13... b4 {[%emt 0:08:16] The position is equal.} 14. Nd1 {[%emt 0:02:46]} (14. Nb1 $5 {[%cal Rd2b4]}) 14... d5 {[%emt 0:00:10]} 15. e5 {[%emt 0:03:30]} Ne4 {[%emt 0:00:14]} 16. Be3 {[%emt 0:01:27]} (16. Nf2 $5 {[%cal Rf2e4]}) 16... g6 {[%emt 0:15:18] [#]} 17. Nf2 $146 {[%emt 0:03:54]} ({Predecessor:} 17. Bd4 h5 18. Nf2 Bh4 19. Rc1 Bxf2 20. Bxf2 h4 21. Bd4 a5 22. Nd2 Ndc5 23. Bb5+ {0-1 (35) Nixdorf,A (1874)-Koelsch,M (2098) Gross Groenau 2008}) 17... Ndc5 {[%emt 0:17:29]} 18. Rc1 {[%emt 0:05:44]} O-O {[%emt 0:08:11]} 19. Bd4 {[%emt 0:04:26]} (19. Ng4 {is more complex.} Rac8 20. Bd4 Kg7 21. Qe3) 19... Nxf2+ {[%emt 0:01:06]} 20. Qxf2 {[%emt 0:01:41]} Rac8 {[%emt 0:01:11]} 21. Qg3 {[%emt 0:05:38]} Ne4 {[%emt 0:04:31]} 22. Qe3 {[%emt 0:00:35]} Nc5 {[%emt 0:01:47]} 23. Qh3 {[%emt 0:04:39]} Rfd8 $2 {[%emt 0:02:47][%mdl 8192]} (23... Ne4 $11) 24. Qg4 $2 {[%emt 0:03:43]} (24. f5 $1 $18 {[%cal Rf5g6]} Nxd3 25. cxd3) 24... Ne4 $11 {[%emt 0:02:26]} 25. Be3 {[%emt 0:06:06]} a5 {[%emt 0:03:50]} 26. Qe2 {[%emt 0:04:16]} a4 {[%emt 0:00:55]} 27. Nd4 {[%emt 0:00:06]} Bc5 {[%emt 0:00:55]} 28. Nf3 {[%emt 0:03:26]} a3 {[%emt 0:03:34]} 29. bxa3 {[%emt 0:01:35]} (29. Rb1 $15) 29... bxa3 {[%emt 0:03:18]} (29... Nc3 $17 30. Qf2 Bxe3 31. Qxe3 d4) 30. Bd2 {[%emt 0:01:14]} ({White should try} 30. Nd4 $1 $15) 30... Qb6 $17 {[%emt 0:01:11]} 31. Be1 {[%emt 0:00:57] Inhibits Nf2+.} Qb2 {[%emt 0:00:59][%csl LRa2,LRc1]} 32. Bh4 {[%emt 0:00:38]} Rd7 {[%emt 0:01:57]} (32... Qxa2 33. Ra1 Qb2 34. Rab1 Qxb1 35. Rxb1 $11) 33. Rb1 {[%emt 0:00:53]} Nc3 {[%emt 0:03:33] Black is much more active.} ({Better is} 33... Qxa2 $17 {And now ...Nc3 would win.} 34. Ra1 Qb2) 34. Rxb2 $15 {[%emt 0:00:24]} Nxe2 {[%emt 0:00:52]} (34... axb2 35. Qd2 b1=Q 36. Rxb1 Nxb1 37. Qe1 $14) 35. Rb3 {[%emt 0:00:31]} (35. Rxb7 Rxb7 36. Ba6 (36. Bxe2 $2 Rb2 $19) 36... Rcb8 $1 37. Bxb7 (37. Bxe2 $2 Rb2 $19) 37... Rxb7 $19) 35... Nxf4 {[%emt 0:00:34]} 36. Bb5 {[%emt 0:00:05]} Rdc7 {[%emt 0:00:17] Threatens to win with ...d4.} 37. Bg5 {[%emt 0:00:54]} Nh5 {[%emt 0:00:01] Hoping for ...d4.} 38. Bd2 {[%emt 0:00:34]} (38. Rfb1 $1 $15) 38... d4 $17 {[%emt 0:00:41]} 39. Ba5 {[%emt 0:00:37]} Re7 {[%emt 0:00:46]} 40. c4 {[%emt 0:00:00] Against Bd5} Ng7 {[%emt 0:00:00]} (40... dxc3 $142 {...c2 is the strong threat.} 41. Rxc3 Nf4) 41. Ne1 {[%emt 0:04:31] [#]} Be4 $1 {[%emt 0:06:49]} 42. Rf4 {[%emt 0:01:02] [#]} Bf5 {[%emt 0:01:39]} 43. Bd2 {[%emt 0:10:37]} g5 {[%emt 0:01:24]} 44. Rf1 {[%emt 0:00:11]} h6 {[%emt 0:00:12]} 45. h3 {[%emt 0:01:06]} Be4 {[%emt 0:00:27]} 46. Nd3 {[%emt 0:00:26]} Bxd3 {[%emt 0:01:21]} 47. Rxd3 {[%emt 0:00:04]} Nf5 {[%emt 0:00:08]} 48. Bc1 {[%emt 0:00:27]} Ra7 {[%emt 0:00:22]} 49. Re1 {[%emt 0:01:40]} Kg7 {[%emt 0:00:35]} 50. Re4 {[%emt 0:00:16]} Ne3 {[%emt 0:02:03]} 51. Bxe3 $2 {[%emt 0:00:41]} (51. Bd2) 51... dxe3 $19 {[%emt 0:00:03] Black is clearly winning.} 52. Kg1 {[%emt 0:00:32]} Raa8 {[%emt 0:00:26] Strongly threatening ...Rd8.} 53. Kf1 {[%emt 0:00:29]} Rd8 {[%emt 0:00:05] Weighted Error Value: White=0.33/Black=0.22 (precise)} 0-1

[Event "2nd Serbia Open Masters 2022"]
[Site "Novi Sad"]
[Date "2022.06.30"]
[Round "3.42"]
[White "Tancsa, Tamas"]
[Black "Assaubayeva, Bibisara"]
[Result "0-1"]
[ECO "B90"]
[WhiteElo "2091"]
[BlackElo "2439"]
[Annotator "TA"]
[PlyCount "68"]
[EventDate "2022.06.28"]
[EventType "swiss"]
[EventCountry "SRB"]
[SourceTitle "playchess.com"]
[Source "ChessBase"]
[SourceQuality "1"]
[TimeControl "40/5400+30:900+30"]

{[%evp 15,68,16,29,25,34,25,33,29,18,16,25,20,20,21,32,0,0,0,0,0,0,1,11,0,24,12,20,0,9,-125,-132,-130,-127,-189,-171,-406,-388,-391,-387,-482,-405,-604,-560,-930,-926,-1268,-1277,-1277,-1277,-1233,-1219,-1135,-1116,-29994,-29995]} 1. e4 {[%emt 0:00:10]} c5 {[%emt 0:00:19]} 2. Nf3 {[%emt 0:00:14]} d6 {[%emt 0:00:06]} 3. d4 {[%emt 0:00:11]} cxd4 {[%emt 0:00:04]} 4. Nxd4 {[%emt 0:00:10]} Nf6 {[%emt 0:00:04]} 5. Nc3 {[%emt 0:00:12]} a6 {[%emt 0:00:04]} 6. f3 {[%emt 0:00:11]} e5 {[%emt 0:00:06]} 7. Nb3 {[%emt 0:00:08]} Be6 {[%emt 0:00:05]} 8. Be3 {[%emt 0:00:17]} h5 {[%emt 0:00:07]} 9. Nd5 {[%emt 0:00:10] B90: Sicilian Najdorf: Unusual White 6th moves, 6 Be3 Ng4 and 6 Be3 e5.} Bxd5 {[%emt 0:00:06]} 10. exd5 {[%emt 0:00:20]} Nbd7 {[%emt 0:00:03][%cal Bb8d7,Bd7b6,Bb6d5][%mdl 32]} 11. Qd2 {[%emt 0:00:29] White is slightly better.} g6 {[%emt 0:00:07]} 12. O-O-O {[%emt 0:00:11]} Nb6 {[%emt 0:00:12]} 13. Kb1 {[%emt 0:00:09]} Nbxd5 {[%emt 0:01:10]} 14. Bg5 {[%emt 0:00:12] [#] Qxd5 is the strong threat.} Be7 $1 {[%emt 0:00:03]} 15. Na5 {[%emt 0:00:10] 15.Bd3 is a critical line.} O-O {[%emt 0:07:22]} 16. Bc4 {[%emt 0:03:59]} (16. g3 {is interesting.} Qb6 17. Bc4 Rac8 18. Bxd5 Nxd5 19. Bxe7 Nxe7 20. Qxd6 Qxa5 21. Qxe7 Qb5 22. Rd2) 16... Nb6 {[%emt 0:05:34]} 17. Bxf6 {[%emt 0:01:30]} Bxf6 {[%emt 0:03:11]} 18. Qxd6 {[%emt 0:00:26]} Nxc4 {[%emt 0:03:19]} 19. Nxc4 {[%emt 0:00:44] [#]} Qxd6 $146 {[%emt 0:05:47]} ({Predecessor:} 19... Rc8 20. Nb6 Rc6 21. Qxd8 Rxd8 22. Nd7 Kg7 23. c3 Bg5 24. Kc2 Rc7 25. Nb6 Rc6 26. Rxd8 Bxd8 {½-½ (35) Sgherri,M (2366)-Mislin,R (2338) ICCF email 2014}) 20. Rxd6 {[%emt 0:01:42]} Kg7 {[%emt 0:01:39]} 21. Nb6 {[%emt 0:02:02]} Rad8 {[%emt 0:04:12]} 22. Rhd1 {[%emt 0:00:16]} (22. Nd7 $11) 22... Rxd6 $17 {[%emt 0:08:16]} 23. Rxd6 {[%emt 0:00:03][%mdl 4096] Endgame [#] KRB-KRN} e4 $1 {[%emt 0:00:53]} 24. f4 {[%emt 0:35:16]} (24. fxe4 $17 {was necessary.} Re8 25. Nd7 Rxe4 26. a3 Re1+ 27. Ka2) 24... e3 $19 {[%emt 0:04:25]} 25. Rd1 $2 {[%emt 0:02:27]} (25. Kc1) 25... Rd8 {[%emt 0:01:48][%cal Rd8d1]} 26. Re1 {[%emt 0:02:39]} Rd2 {[%emt 0:00:15]} 27. g3 {[%emt 0:08:46]} Rxh2 {[%emt 0:02:13] Hoping for ...h4.} 28. c3 {[%emt 0:00:08]} (28. Kc1 $142 Rh3 29. Nd5) 28... e2 {[%emt 0:01:36]} 29. Kc2 {[%emt 0:00:31]} h4 {[%emt 0:01:05][%cal Bh5h4,Bh4h3,Bh3h2][%mdl 32]} 30. g4 {[%emt 0:01:33]} h3 {[%emt 0:00:05] Strongly threatening ...Bh4.} 31. g5 {[%emt 0:00:15]} Bd8 {[%emt 0:00:36]} 32. Nd5 {[%emt 0:00:17]} Rf2 {[%emt 0:00:18] White must now prevent ...h2.} 33. Ne3 {[%emt 0:00:46]} h2 {[%emt 0:00:16]} 34. Rh1 {[%emt 0:00:23]} e1=Q+ {[%emt 0:00:06] Weighted Error Value: White=0.90/Black=0.06 (flawless)} 0-1

[Event "2nd Serbia Open Masters 2022"]
[Site "Novi Sad"]
[Date "2022.06.30"]
[Round "3.43"]
[White "Mamedov, Edgar"]
[Black "Kilic, Eray"]
[Result "0-1"]
[ECO "D00"]
[WhiteElo "2004"]
[BlackElo "2192"]
[Annotator "RC"]
[PlyCount "50"]
[EventDate "2022.06.28"]
[EventType "swiss"]
[EventCountry "SRB"]
[SourceTitle "playchess.com"]
[Source "ChessBase"]
[SourceQuality "1"]
[TimeControl "40/5400+30:900+30"]

1. d4 {[%emt 0:00:03]} Nf6 {[%emt 0:00:10]} 2. Bg5 {[%emt 0:00:13]} d5 {[%emt 0:00:11]} 3. e3 {[%emt 0:00:18]} c5 {[%emt 0:00:35]} 4. Bxf6 {[%emt 0:00:16]} gxf6 {[%emt 0:00:13]} 5. dxc5 {[%emt 0:00:28]} e6 {[%emt 0:01:16]} 6. Nf3 {[%emt 0:00:39]} Bxc5 {[%emt 0:01:04]} 7. c4 {[%emt 0:00:26]} dxc4 {[%emt 0:00:42]} 8. Nbd2 {[%emt 0:00:11]} b6 {[%emt 0:16:34]} 9. Bxc4 {[%emt 0:03:39]} O-O {[%emt 0:02:17]} 10. a3 {[%emt 0:09:17]} Bb7 {[%emt 0:03:23]} 11. O-O {[%emt 0:00:38]} Kh8 {[%emt 0:05:27]} 12. Be2 {[%emt 0:03:52]} Rg8 {[%emt 0:04:19]} 13. Nc4 {[%emt 0:05:33]} Nd7 {[%emt 0:05:27]} 14. Rc1 {[%emt 1:11:57]} a5 {[%emt 0:08:43]} 15. Qa4 {[%emt 0:00:00]} Ne5 {[%emt 0:08:19]} 16. Ncxe5 {[%emt 0:00:00]} fxe5 {[%emt 0:00:07]} 17. e4 {[%emt 0:00:00]} Qf6 {[%emt 0:02:31]} 18. Rcd1 {[%emt 0:00:00]} Qf4 {[%emt 0:04:11]} 19. Rd7 {[%emt 0:00:00]} Bxe4 {[%emt 0:01:36]} 20. Rxf7 {[%emt 0:00:00]} Rxg2+ {[%emt 0:00:16]} 21. Kxg2 {[%emt 0:00:00]} Rg8+ {[%emt 0:00:18]} 22. Kh1 {[%emt 0:00:00]} Bxf3+ {[%emt 0:00:05]} 23. Bxf3 {[%emt 0:00:00]} Qxa4 {[%emt 0:00:05]} 24. Re1 {[%emt 0:00:00]} Bxf2 {[%emt 0:01:06]} 25. Rf1 {[%emt 0:00:00]} Qc4 {[%emt 0:01:27]} 0-1

[Event "2nd Serbia Open Masters 2022"]
[Site "Novi Sad"]
[Date "2022.06.30"]
[Round "3.44"]
[White "Salimova, Nurgyul"]
[Black "Popvasilev, Kaloyan"]
[Result "1/2-1/2"]
[ECO "D36"]
[WhiteElo "2418"]
[BlackElo "2192"]
[Annotator "TA"]
[PlyCount "169"]
[EventDate "2022.06.28"]
[EventType "swiss"]
[EventCountry "SRB"]
[SourceTitle "playchess.com"]
[Source "ChessBase"]
[SourceQuality "1"]
[TimeControl "40/5400+30:900+30"]

{[%evp 19,169,20,34,11,9,-3,20,0,8,-23,-15,-22,-23,-20,-21,-41,-37,-52,4,-58,-36,-54,-56,-53,-34,-61,-30,-57,-22,-71,-56,-147,-106,-181,-123,-127,-71,-186,-86,-92,-94,-146,-143,-134,-135,-181,-108,-143,-133,-136,-126,-219,-216,-213,-147,-132,-88,-84,-31,-116,-121,-122,-118,-120,-100,-157,-132,-166,-175,-157,-159,-176,-165,-198,-132,-160,-40,-44,-39,-45,-26,-28,-19,-24,-16,-17,-19,-32,-8,-12,0,-6,0,0,0,-5,-5,-5,-5,-6,-5,0,-2,0,-1,-60,-64,-104,-89,-129,-131,-210,-210,-252,-252,-226,-197,-196,-209,-1194,-1174,-1304,-1161,-1160,-1101,-1447,-1429,-1387,-1129,-1037,-896,-594,-112,-112,-112,-112,-112,-135,-8,-8,-8,-8,-8,-8,-8,-8,-8,-8,-8,-8,-8,-8]} 1. c4 {[%emt 0:01:52]} e6 {[%emt 0:01:05]} 2. Nc3 {[%emt 0:00:19]} d5 {[%emt 0:08:55]} 3. cxd5 {[%emt 0:00:36]} exd5 {[%emt 0:00:06]} 4. d4 {[%emt 0:00:06]} Nf6 {[%emt 0:01:12]} 5. Bg5 {[%emt 0:00:19]} Be7 {[%emt 0:00:30]} 6. e3 {[%emt 0:00:18]} c6 {[%emt 0:00:59]} 7. Qc2 {[%emt 0:02:09]} Nbd7 {[%emt 0:02:14]} 8. Bd3 {[%emt 0:00:33]} Nh5 {[%emt 0:02:16]} 9. Bxe7 {[%emt 0:01:06]} Qxe7 {[%emt 0:00:06]} 10. Nge2 {[%emt 0:03:43]} Nb6 {[%emt 0:06:00] is now debated instead of 10...g6.} 11. h3 {[%emt 0:03:01] D36: Queen's Gambit Declined: Exchange Variation: Main line (5 Bg5 c6 6 Qc2).} g6 {[%emt 0:01:19]} 12. O-O-O {[%emt 0:05:57]} Bd7 {[%emt 0:15:10]} 13. g4 {[%emt 0:08:05]} Ng7 {[%emt 0:00:12]} 14. e4 {[%emt 0:03:08]} dxe4 {[%emt 0:09:57]} 15. Bxe4 {[%emt 0:00:34] [#]} f5 $146 {[%emt 0:05:29]} ({Predecessor:} 15... O-O 16. Kb1 Be6 17. Nf4 Rac8 18. Nxe6 Nxe6 19. d5 cxd5 20. Bxd5 Nf4 21. Bb3 Rfe8 {½-½ (34) Brinck Claussen,B (2227)-Sorensen,P (1980) Ballerup 2017}) 16. gxf5 {[%emt 0:10:29]} Bxf5 {[%emt 0:05:57]} 17. f3 {[%emt 0:00:54]} O-O {[%emt 0:03:25]} 18. h4 {[%emt 0:02:43]} Kh8 {[%emt 0:13:09]} (18... Nc4 $15 19. Qb3 b5) 19. Rdg1 {[%emt 0:13:18]} (19. Ng3 $11) 19... Nd5 {[%emt 0:07:59]} 20. Qd2 {[%emt 0:15:41]} Nxc3 {[%emt 0:03:05]} 21. Nxc3 {[%emt 0:00:11]} Rad8 {[%emt 0:02:20]} 22. Rd1 {[%emt 0:08:48]} Nh5 {[%emt 0:01:25]} 23. Rh2 {[%emt 0:03:55]} Qd6 {[%emt 0:03:32]} 24. Kb1 {[%emt 0:00:39]} (24. d5 $11 {deserves consideration.}) 24... Qf4 $17 {[%emt 0:00:53]} 25. Qc2 {[%emt 0:01:04]} (25. Ka1 $15) 25... Ng3 {[%emt 0:01:23][%cal Of4f3]} 26. Rhd2 {[%emt 0:07:07] [#]} (26. d5 $17) 26... Bxe4 {[%emt 0:00:43]} (26... Qxh4 27. d5 $17) (26... Qxf3 $1 $19 {[%mdl 512]} 27. Bxf3 Bxc2+ 28. Kxc2 Rxf3) 27. Nxe4 {[%emt 0:01:10]} Qxf3 {[%emt 0:00:34]} (27... Nf5 $142 28. Nc5 Ne3) 28. Ng5 {[%emt 0:00:28]} (28. Nc5 $17 Qd5 29. Nxb7) 28... Qf5 {[%emt 0:00:14]} (28... Qd5 $1 $19 {White must now prevent ...Nf5.} 29. Rd3 Ne4 30. Nxe4 Qxe4) 29. Rd3 {[%emt 0:00:08] [#]} Nh5 {[%emt 0:01:00]} 30. Qc5 {[%emt 0:04:59]} (30. Re3 $142) 30... Nf4 {[%emt 0:01:36]} 31. Qxf5 {[%emt 0:00:30]} Rxf5 {[%emt 0:00:04]} ({Stronger than} 31... gxf5 32. Rf3 h6 33. Nf7+ (33. Rxf4 hxg5 34. hxg5 Kh7 $17) 33... Rxf7 34. Rxf4 $17) 32. Rb3 {[%emt 0:00:36]} (32. Re3 $17 {keeps fighting.}) 32... b6 {[%emt 0:00:45]} (32... Rd7 $19 33. Re1 Kg7) 33. Re3 {[%emt 0:00:37]} h6 {[%emt 0:00:57]} 34. Nf3 {[%emt 0:00:21]} c5 {[%emt 0:01:28]} 35. Ne5 {[%emt 0:01:20]} (35. Re4 $17 {was worth a try.}) 35... cxd4 $19 {[%emt 0:00:35]} ({Weaker is} 35... Rxd4 36. Rxd4 cxd4 37. Re4) 36. Re4 {[%emt 0:00:05]} Rd6 {[%emt 0:01:16] Prevents Nc6.} 37. Nc4 {[%emt 0:00:26]} Rc6 {[%emt 0:00:24]} 38. Rdxd4 {[%emt 0:00:53]} Ne6 {[%emt 0:00:18]} (38... Nd5 $17) 39. Rd1 {[%emt 0:00:24]} (39. Rd7 $15) 39... Rf4 $17 {[%emt 0:00:51]} 40. Rxf4 {[%emt 0:00:00]} Nxf4 {[%emt 0:00:00][%mdl 4096] Endgame KRN-KRN} 41. Ne5 {[%emt 0:01:04]} Rc7 {[%emt 0:06:22]} 42. b4 {[%emt 0:05:02]} (42. Rf1 $142 Re7 43. Nc6) 42... Kg7 {[%emt 0:01:30]} 43. Kb2 {[%emt 0:00:53]} g5 {[%emt 0:01:37]} 44. hxg5 {[%emt 0:00:41]} hxg5 {[%emt 0:00:02]} 45. Rd6 {[%emt 0:01:01]} Re7 {[%emt 0:01:32]} 46. Ng4 {[%emt 0:01:08]} Ne6 {[%emt 0:01:36]} (46... Re6 $19 47. Rxe6 (47. Rd7+ $2 Kg6 $19) 47... Nxe6) 47. Ne3 {[%emt 0:00:55] [#]} Kf7 {[%emt 0:01:24]} ({Better is} 47... Nd4 $1 $17 {[%mdl 512]} 48. a4 (48. Nd5 Re2+) 48... Rxe3 49. Rxd4 Kf6) 48. Nd5 $15 {[%emt 0:02:32]} Rb7 {[%emt 0:00:06]} 49. Kc3 {[%emt 0:03:44]} Nf8 {[%emt 0:02:15]} 50. Kd4 {[%emt 0:00:42]} Rd7 {[%emt 0:00:54]} 51. Rf6+ {[%emt 0:00:10]} Kg7 {[%emt 0:00:03][%cal Od7d5]} 52. Rf5 {[%emt 0:01:00]} Nh7 {[%emt 0:00:53]} 53. Ke5 {[%emt 0:00:25]} Kg6 {[%emt 0:00:44][%cal Od7d5]} 54. Rf1 {[%emt 0:00:33]} g4 {[%emt 0:01:08]} 55. Nf4+ {[%emt 0:03:15]} Kg5 {[%emt 0:00:04]} 56. Ne6+ {[%emt 0:00:40]} Kh4 {[%emt 0:01:35] And now ...Ng5 would win.} 57. Rh1+ {[%emt 0:00:04]} Kg3 {[%emt 0:00:13]} 58. Rg1+ {[%emt 0:00:17]} Kh3 {[%emt 0:00:53] aiming for ...Re7.} 59. Nf4+ {[%emt 0:00:29]} Kh4 {[%emt 0:00:14]} 60. Rh1+ {[%emt 0:01:02]} Kg3 {[%emt 0:00:03]} 61. Rg1+ $1 {[%emt 0:00:13]} Kf3 {[%emt 0:00:16]} 62. Rf1+ {[%emt 0:00:13]} (62. Nh5 $11) 62... Ke3 {[%emt 0:00:13]} 63. Ng2+ {[%emt 0:01:27]} Ke2 {[%emt 0:04:00]} 64. Rf4 {[%emt 0:00:18]} g3 {[%emt 0:00:00] Threatens to win with ...Ng5.} 65. Rf5 {[%emt 0:00:34] Prevents Ng5.} (65. Rc4 $17) 65... Re7+ $19 {[%emt 0:00:00]} 66. Kf4 {[%emt 0:00:33]} Kf2 {[%emt 0:00:00]} 67. Nh4 {[%emt 0:00:03]} Rg7 {[%emt 0:00:00]} 68. Ke4+ {[%emt 0:01:23]} Ke2 {[%emt 0:00:00]} 69. Ng2 $2 {[%emt 0:00:20]} (69. Re5) 69... Rg4+ {[%emt 0:00:31]} 70. Rf4 {[%emt 0:00:30]} Rxf4+ {[%emt 0:01:21]} 71. Nxf4+ {[%emt 0:00:15] KN-KN} Kf2 {[%emt 0:00:06]} 72. Kf5 {[%emt 0:00:25]} Kf3 {[%emt 0:00:29]} 73. Ng6 {[%emt 0:00:16] [#]} Nf8 $1 {[%emt 0:01:59][%mdl 512] ( -> ...Nxg6)} 74. Nh4+ {[%emt 0:00:10]} Ke3 {[%emt 0:00:13]} 75. Kg4 {[%emt 0:01:02]} Kd4 $2 {[%emt 0:00:11]} (75... Kf2 $19 {[%cal Of8g6] Hoping for ...Ng6!} 76. Kf5 b5) 76. Kxg3 $17 {[%emt 0:00:12]} Kc4 {[%emt 0:00:04]} 77. Nf5 {[%emt 0:01:19]} Kxb4 {[%emt 0:00:07] ...Ka3 is the strong threat.} 78. Ne7 {[%emt 0:00:12]} Nd7 {[%emt 0:00:51]} ({Black should try} 78... a5 $17 79. Nd5+ Kc5) 79. Nc6+ $11 {[%emt 0:00:26] The position is equal.} Ka3 {[%emt 0:01:20]} 80. Nxa7 {[%emt 0:00:05]} Kxa2 {[%emt 0:00:04]} 81. Kf4 {[%emt 0:00:35]} Kb3 {[%emt 0:00:07]} 82. Nc8 $1 {[%emt 0:00:20]} b5 {[%emt 0:00:07]} 83. Na7 {[%emt 0:00:03]} b4 {[%emt 0:00:19] Strongly threatening ...Kc3.} 84. Nc6 {[%emt 0:00:04]} Kc4 {[%emt 0:00:07]} 85. Nxb4 {[%emt 0:00:03] White happily takes the draw.  Weighted Error Value: White=0.22 (precise) /Black=0.23 (precise)} 1/2-1/2